[Event "1st Bangalore GM-Open-A 2024"]
[Site "Bangalore"]
[Date "2024.01.23"]
[Round "7.11"]
[White "Nithin Babu"]
[Black "Sammed Jaykumar, Shete"]
[Result "1-0"]
[ECO "B45"]
[WhiteElo "2177"]
[BlackElo "2441"]
[Annotator "TA"]
[PlyCount "79"]
[EventDate "2024.01.20"]
[EventType "swiss"]
[EventCountry "IND"]
[SourceTitle "playchess.com"]
[Source "ChessBase"]
[SourceQuality "1"]
[TimeControl "5400+30"]

{[%evp 27,79,7,3,0,3,0,9,9,71,27,39,6,75,83,88,76,90,87,83,71,195,177,185,92,192,169,183,109,142,141,143,141,193,140,257,252,272,242,270,211,314,307,449,460,568,552,655,637,605,566,879,641,564,560]} 1. e4 {[%emt 0:03:13]} c5 {[%emt 0:00:10]} 2. Nf3 {[%emt 0:00:14]} e6 {[%emt 0:00:05]} 3. d4 {[%emt 0:00:03]} cxd4 {[%emt 0:00:13]} 4. Nxd4 {[%emt 0:00:14]} Nc6 {[%emt 0:00:11]} 5. Nc3 {[%emt 0:00:07]} Nf6 {[%emt 0:00:26]} 6. Nxc6 {[%emt 0:00:32]} bxc6 {[%emt 0:00:07]} 7. e5 {[%emt 0:00:16]} Nd5 {[%emt 0:00:05]} 8. Ne4 {[%emt 0:00:16]} Qc7 {[%emt 0:00:05]} 9. f4 {[%emt 0:00:26]} Qb6 {[%emt 0:00:06]} 10. c4 {[%emt 0:00:57]} Bb4+ {[%emt 0:00:15]} 11. Ke2 {[%emt 0:00:26]} f5 {[%emt 0:00:37]} 12. Nf2 {[%emt 0:01:24]} Ba6 {[%emt 0:01:00]} 13. Kf3 {[%emt 0:01:53]} Ne7 {[%emt 0:00:06]} 14. Be3 {[%emt 0:03:14]} Bc5 {[%emt 0:00:41]} 15. Bxc5 {[%emt 0:00:51] B45: Sicilian Four Knights.} Qxc5 {[%emt 0:00:05]} 16. Qd6 {[%emt 0:03:22]} Qa5 {[%emt 0:00:14][%cal Og7g5]} 17. h4 {[%emt 0:06:59] The position is equal.} Nc8 {[%emt 0:10:40] [#] 17...Rd8 gains popularity.} (17... Rd8 $11) 18. Qd4 $146 {[%emt 0:03:20] Black must now prevent Nd3.} ({Predecessor:} 18. Qd3 Nb6 19. b3 O-O 20. Be2 d5 21. exd6 e5 22. fxe5 Qxe5 23. Rad1 Rae8 24. Rhe1 {1-0 Fuka,M (2082)-Celbr,R (2023) CZE-ch qf285 email 2004}) 18... c5 {[%emt 0:02:09]} 19. Qe3 {[%emt 0:01:22]} Rb8 {[%emt 0:01:25]} (19... O-O $11) 20. b3 $16 {[%emt 0:01:57]} Ne7 {[%emt 0:00:48]} 21. Nd3 $36 {[%emt 0:07:54][%mdl 2048] White is in control.} Rc8 {[%emt 0:09:18]} 22. Kf2 {[%emt 0:07:35]} Bb7 {[%emt 0:03:06]} 23. Be2 {[%emt 0:03:56]} Ng8 {[%emt 0:06:17]} (23... O-O $16) 24. a3 $1 $18 {[%emt 0:10:11]} Qb6 {[%emt 0:00:23] [#]} 25. Rhc1 {[%emt 0:02:01]} (25. b4 $1 $18) 25... Nh6 {[%emt 0:00:33] [#]} (25... Be4 $16) 26. b4 $1 {[%emt 0:01:57][%cal Rd3c5]} Qc6 {[%emt 0:03:47]} 27. g3 {[%emt 0:04:10]} (27. Qxc5 $2 Qxg2+ 28. Ke1 Rxc5 $19) (27. Rg1 $18) 27... Ng4+ {[%emt 0:07:43]} 28. Bxg4 {[%emt 0:00:06]} fxg4 {[%emt 0:00:08] Black is weak on the dark squares} 29. Nxc5 {[%emt 0:03:23] Active counter play!} (29. bxc5 $6 Qg2+ 30. Ke1 Be4 $11) 29... Qg2+ {[%emt 0:04:55]} 30. Ke1 {[%emt 0:00:02][%cal Bf2e1,Be1d2,Bd2c3][%mdl 32]} Ba8 {[%emt 0:00:18]} (30... h6 $16 31. Qf2 g5) 31. Qf2 {[%emt 0:02:00]} Qc6 {[%emt 0:04:02]} 32. Rd1 {[%emt 0:03:05]} O-O {[%emt 0:00:43]} 33. Kd2 {[%emt 0:05:07]} ({Not} 33. Rxd7 Qh1+ 34. Qf1 Qh2 35. Nxe6 Qb2 36. Rxg7+ Kh8 $11) 33... d6 {[%emt 0:04:25]} (33... Qc7 $142 34. Ke1 Rf7) 34. exd6 {[%emt 0:00:49][%cal Be5d6,Bd6d7][%mdl 32]} ({Weaker is} 34. Nxe6 Qxc4 35. Nxf8 dxe5 $11) 34... e5 {[%emt 0:00:08]} (34... Qxd6+ {might work better.} 35. Kc3 Qc6) 35. Kc3 {[%emt 0:01:47] White is clearly winning.} exf4 {[%emt 0:03:57]} 36. gxf4 {[%emt 0:00:40]} Rf6 {[%emt 0:07:48]} 37. d7 {[%emt 0:02:24]} Rd8 {[%emt 0:00:07]} 38. Qe3 {[%emt 0:02:35]} Kf7 {[%emt 0:00:48]} 39. Re1 {[%emt 0:00:46] aiming for Qe7+.} Qf3 {[%emt 0:00:08]} 40. Rad1 {[%emt 0:04:15] Against Rd6. Excellently played by Nithin Babu!   Weighted Error Value: White=0.41/Black=0.57} 1-0

[Event "1st Bangalore GM-Open-A 2024"]
[Site "Bangalore"]
[Date "2024.01.23"]
[Round "7.12"]
[White "Saravana, Krishnan P."]
[Black "Ghosh, Diptayan"]
[Result "0-1"]
[ECO "B40"]
[WhiteElo "2269"]
[BlackElo "2568"]
[Annotator "RC"]
[PlyCount "150"]
[EventDate "2024.01.20"]
[EventType "swiss"]
[EventCountry "IND"]
[SourceTitle "playchess.com"]
[Source "ChessBase"]
[SourceQuality "1"]
[TimeControl "5400+30"]

1. e4 {[%emt 0:00:04]} c5 {[%emt 0:00:25]} 2. Nf3 {[%emt 0:03:18]} e6 {[%emt 0:00:05]} 3. d4 {[%emt 0:02:18]} cxd4 {[%emt 0:00:47]} 4. Nxd4 {[%emt 0:00:07]} Nf6 {[%emt 0:00:08]} 5. Nc3 {[%emt 0:02:09]} Nc6 {[%emt 0:00:16]} 6. Nxc6 {[%emt 0:08:05]} bxc6 {[%emt 0:00:09]} 7. Bd3 {[%emt 0:00:37]} d5 {[%emt 0:00:28]} 8. O-O {[%emt 0:00:32]} Be7 {[%emt 0:00:03]} 9. Qe2 {[%emt 0:00:58]} O-O {[%emt 0:00:17]} 10. b3 {[%emt 0:01:49]} Re8 {[%emt 0:00:04]} 11. Bb2 {[%emt 0:01:40]} e5 {[%emt 0:00:23]} 12. Na4 {[%emt 0:02:01]} Bd6 {[%emt 0:06:09]} 13. Rfe1 {[%emt 0:04:08]} Bg4 {[%emt 0:03:25]} 14. Qe3 {[%emt 0:01:48]} Qe7 {[%emt 0:06:36]} 15. Qg5 {[%emt 0:02:31]} h6 {[%emt 0:05:53]} 16. Qh4 {[%emt 0:02:03]} Qf8 {[%emt 0:24:52]} 17. f3 {[%emt 0:05:40]} Bd7 {[%emt 0:00:55]} 18. Kh1 {[%emt 0:04:06]} Rab8 {[%emt 0:03:12]} 19. Bc1 {[%emt 0:04:24]} Qe7 {[%emt 0:03:58]} 20. Be3 {[%emt 0:06:51]} Be6 {[%emt 0:01:39]} 21. c3 {[%emt 0:04:55]} Rbd8 {[%emt 0:07:21]} 22. Rad1 {[%emt 0:12:07]} Bc8 {[%emt 0:04:18]} 23. Qf2 {[%emt 0:02:45]} dxe4 {[%emt 0:01:33]} 24. Bxe4 {[%emt 0:00:41]} Nxe4 {[%emt 0:00:16]} 25. fxe4 {[%emt 0:00:09]} Bb8 {[%emt 0:00:09]} 26. Bc5 {[%emt 0:02:22]} Qc7 {[%emt 0:01:48]} 27. Qh4 {[%emt 0:02:06]} f6 {[%emt 0:01:14]} 28. c4 {[%emt 0:01:15]} Qf7 {[%emt 0:01:09]} 29. Nc3 {[%emt 0:02:23]} Bc7 {[%emt 0:06:07]} 30. Ne2 {[%emt 0:06:29]} Ba5 {[%emt 0:02:59]} 31. Rf1 {[%emt 0:00:29]} Qg6 {[%emt 0:04:26]} 32. h3 {[%emt 0:00:56]} Bb6 {[%emt 0:00:13]} 33. Bxb6 {[%emt 0:02:27]} axb6 {[%emt 0:00:01]} 34. Ng1 {[%emt 0:03:58]} Rd4 {[%emt 0:03:39]} 35. Rde1 {[%emt 0:00:00]} c5 {[%emt 0:01:39]} 36. Nf3 {[%emt 0:00:00]} Rd3 {[%emt 0:00:10]} 37. Qf2 {[%emt 0:02:07]} Red8 {[%emt 0:00:46]} 38. Re2 {[%emt 0:02:30]} Qh5 {[%emt 0:02:56]} 39. Kg1 {[%emt 0:00:15]} Kh7 {[%emt 0:01:01]} 40. Re3 {[%emt 0:00:37]} Bb7 {[%emt 0:01:26]} 41. Rxd3 {[%emt 0:00:34]} Rxd3 {[%emt 0:00:01]} 42. Qe2 {[%emt 0:00:13]} Rd8 {[%emt 0:00:45]} 43. Qe3 {[%emt 0:01:24]} Qe8 {[%emt 0:01:49]} 44. Re1 {[%emt 0:01:10]} Qd7 {[%emt 0:01:25]} 45. Kf2 {[%emt 0:00:50]} Bc6 {[%emt 0:01:04]} 46. Qc3 {[%emt 0:01:34]} Qb7 {[%emt 0:00:20]} 47. Qc2 {[%emt 0:00:15]} Rd6 {[%emt 0:00:59]} 48. Re2 {[%emt 0:01:06]} g6 {[%emt 0:01:17]} 49. a3 {[%emt 0:00:52]} Qa8 {[%emt 0:00:11]} 50. a4 {[%emt 0:00:47]} Kg7 {[%emt 0:00:19]} 51. Ke3 {[%emt 0:00:16]} Qd8 {[%emt 0:02:28]} 52. Rd2 {[%emt 0:00:23]} Rxd2 {[%emt 0:00:25]} 53. Qxd2 {[%emt 0:00:08]} Qxd2+ {[%emt 0:00:08]} 54. Nxd2 {[%emt 0:00:08]} f5 {[%emt 0:00:03]} 55. g3 {[%emt 0:01:46]} Kf6 {[%emt 0:00:08]} 56. exf5 {[%emt 0:01:13]} gxf5 {[%emt 0:00:16]} 57. Nb1 {[%emt 0:01:00]} Kg5 {[%emt 0:03:34]} 58. Nc3 {[%emt 0:00:30]} f4+ {[%emt 0:00:18]} 59. Kf2 {[%emt 0:00:43]} e4 {[%emt 0:00:51]} 60. gxf4+ {[%emt 0:00:47]} Kxf4 {[%emt 0:00:01]} 61. Ne2+ {[%emt 0:00:27]} Kg5 {[%emt 0:00:45]} 62. Ke3 {[%emt 0:00:53]} Kh4 {[%emt 0:00:32]} 63. Nf4 {[%emt 0:00:33]} Kg3 {[%emt 0:00:04]} 64. Nd5 {[%emt 0:00:20]} Kxh3 {[%emt 0:00:09]} 65. Kxe4 {[%emt 0:00:40]} Kg3 {[%emt 0:00:45]} 66. Ke5 {[%emt 0:00:28]} h5 {[%emt 0:00:10]} 67. Ne7 {[%emt 0:00:16]} Bd7 {[%emt 0:00:37]} 68. Ng6 {[%emt 0:00:34]} Be8 {[%emt 0:00:10]} 69. Ne7 {[%emt 0:00:13]} Kg4 {[%emt 0:01:29]} 70. Nd5 {[%emt 0:00:44]} h4 {[%emt 0:00:36]} 71. Nf6+ {[%emt 0:00:52]} Kf3 {[%emt 0:00:25]} 72. Nh7 {[%emt 0:00:33]} Bg6 {[%emt 0:00:35]} 73. Ng5+ {[%emt 0:00:21]} Kg4 {[%emt 0:00:03]} 74. Kf6 {[%emt 0:00:33]} Bc2 {[%emt 0:00:04]} 75. b4 {[%emt 0:00:37]} cxb4 {[%emt 0:00:28]} 0-1

[Event "1st Bangalore GM-Open-A 2024"]
[Site "Bangalore"]
[Date "2024.01.23"]
[Round "7.13"]
[White "Ayush Sharma"]
[Black "Sankalp Gupta"]
[Result "1/2-1/2"]
[ECO "C60"]
[WhiteElo "2378"]
[BlackElo "2535"]
[Annotator "TA"]
[PlyCount "84"]
[EventDate "2024.01.20"]
[EventType "swiss"]
[EventCountry "IND"]
[SourceTitle "playchess.com"]
[Source "ChessBase"]
[SourceQuality "1"]
[TimeControl "5400+30"]

{[%evp 11,84,27,8,16,28,30,47,47,30,21,32,10,35,0,0,0,0,0,7,0,0,2,0,0,0,-7,-16,-10,0,-15,-3,-5,0,0,0,0,56,43,61,57,45,45,45,54,60,44,47,54,72,35,45,39,41,0,68,74,95,89,120,106,112,121,116,25,29,33,98,96,97,0,0,0,0,0,0]} 1. e4 {[%emt 0:00:04]} e5 {[%emt 0:00:09]} 2. Nf3 {[%emt 0:00:05][%cal Bg1f3,Bf3d4,Bd4f5,Bf5e3][%mdl 32]} Nc6 {[%emt 0:00:05]} 3. Bb5 {[%emt 0:00:09]} Nge7 {[%emt 0:00:12]} 4. O-O {[%emt 0:00:09]} Ng6 {[%emt 0:00:13]} 5. d4 {[%emt 0:00:28]} exd4 {[%emt 0:00:10]} 6. Nxd4 {[%emt 0:00:05]} Bc5 {[%emt 0:00:13]} 7. Nf5 {[%emt 0:02:17]} O-O {[%emt 0:00:16][%cal Od7d5]} 8. Be3 {[%emt 0:00:06]} Bxe3 {[%emt 0:04:09]} 9. Nxe3 {[%emt 0:00:18] White is slightly better.} Nce7 {[%emt 0:00:08]} 10. Nc3 {[%emt 0:04:03]} d6 {[%emt 0:08:15]} 11. Qd2 {[%emt 0:20:52]} Kh8 {[%emt 0:03:07]} 12. Ned5 {[%emt 0:05:08]} f5 {[%emt 0:03:11]} 13. Nxe7 {[%emt 0:02:09]} Qxe7 {[%emt 0:00:40]} 14. exf5 {[%emt 0:00:19]} Bxf5 {[%emt 0:00:22]} 15. Rae1 {[%emt 0:00:05]} Qf6 {[%emt 0:09:30]} 16. f4 {[%emt 0:04:45]} c6 {[%emt 0:02:30]} 17. Be2 {[%emt 0:00:02]} d5 {[%emt 0:01:38]} 18. Bf3 {[%emt 0:09:29]} Nh4 {[%emt 0:00:42]} 19. Bh5 {[%emt 0:01:35]} Qh6 {[%emt 0:09:48]} 20. Bd1 {[%emt 0:02:27]} Qg6 {[%emt 0:10:35]} 21. Re5 {[%emt 0:15:45]} d4 {[%emt 0:03:28]} 22. Na4 {[%emt 0:00:20][%cal Og2g3]} Qd6 {[%emt 0:02:00]} 23. g4 {[%emt 0:02:45]} Bd7 {[%emt 0:03:21]} (23... Be6 $1 $11) 24. Nc5 $14 {[%emt 0:03:04]} Ng6 $1 {[%emt 0:03:55][%cal Bh4g6,Bg6e7,Be7c6,Bc6d4][%mdl 32] [#]} 25. Nxd7 {[%emt 0:00:13]} Qxd7 {[%emt 0:00:02]} 26. Re4 {[%emt 0:00:16]} c5 {[%emt 0:00:02]} 27. f5 {[%emt 0:01:46]} Ne7 {[%emt 0:00:07]} 28. c3 {[%emt 0:01:32][%cal Rc3d4,Bc2c3,Bc3c4][%mdl 32]} Nc6 {[%emt 0:03:31]} 29. Bb3 $36 {[%emt 0:01:36][%cal Bd1b3,Bb3e6,Be6d5,Bd5c4][%mdl 2080] White is more active. Black is weak on the light squares} Rad8 {[%emt 0:00:50]} 30. Be6 {[%emt 0:01:43] White is more active.} Qe7 {[%emt 0:03:46]} 31. c4 {[%emt 0:02:21]} Qh4 {[%emt 0:03:42]} 32. Rf3 {[%emt 0:02:43][%cal Bf1f3,Bf3d3,Bd3d1][%mdl 32] Strongly threatening Kg2.} d3 {[%emt 0:11:47]} 33. Rxd3 {[%emt 0:01:25]} Nd4 {[%emt 0:00:02][%cal Od4f3] White must now prevent ...Nf3+!} 34. Bd5 {[%emt 0:03:04][%cal Og1g2]} b5 {[%emt 0:01:47] ...bxc4 is the strong threat.} 35. Qg2 {[%emt 0:04:54]} bxc4 {[%emt 0:03:26]} 36. Bxc4 {[%emt 0:00:34]} Qg5 {[%emt 0:00:13]} 37. Re1 {[%emt 0:00:53] Wards off Qc1} (37. Rh3 $16) 37... Rde8 $11 {[%emt 0:00:56]} 38. Rdd1 {[%emt 0:00:33]} Qh4 {[%emt 0:00:45] [#]} (38... h5 $14) 39. Rxe8 $1 $16 {[%emt 0:03:06]} Rxe8 {[%emt 0:00:01] [#]} 40. h3 {[%emt 0:01:41]} ({White should play} 40. Rf1 $1 $16) 40... Nxf5 $11 {[%emt 0:07:23] The position is equal.} 41. Qf2 {[%emt 0:00:07] Prevents Ne3} Qxh3 {[%emt 0:00:38]} 42. Qxf5 {[%emt 0:00:23][%cal Of5f4] Threatens to win with Qf4!} Qg3+ {[%emt 0:00:40] Weighted Error Value: White=0.12 (very precise) /Black=0.10 (very precise) .  Mistake:       	White=2     	Black=3      Inaccurate:     	White=3     	Black=1      OK:         	White=18    	Black=18     Best:        	White=1     	Black=2      Strong:       	White=1     	Black=1} 1/2-1/2

[Event "1st Bangalore GM-Open-A 2024"]
[Site "Bangalore"]
[Date "2024.01.23"]
[Round "7.14"]
[White "Kushagra Mohan"]
[Black "Savchenko, Boris"]
[Result "1/2-1/2"]
[ECO "B94"]
[WhiteElo "2374"]
[BlackElo "2489"]
[Annotator "TA"]
[PlyCount "82"]
[EventDate "2024.01.20"]
[EventType "swiss"]
[EventCountry "IND"]
[SourceTitle "playchess.com"]
[Source "ChessBase"]
[SourceQuality "1"]
[TimeControl "5400+30"]

{[%evp 12,82,26,5,9,14,13,14,39,39,39,39,72,59,53,51,67,56,61,67,61,52,79,50,56,29,31,45,25,30,62,62,103,119,171,146,130,107,197,203,248,250,258,172,191,192,200,200,197,197,193,30,30,30,30,30,30,30,30,30,30,23,23,23,23,23,23,23,23,23,30,23,23]} 1. e4 {[%emt 0:00:11]} c5 {[%emt 0:00:12]} 2. Nf3 {[%emt 0:00:04]} d6 {[%emt 0:00:08]} 3. d4 {[%emt 0:00:02]} cxd4 {[%emt 0:00:19]} 4. Nxd4 {[%emt 0:00:03]} Nf6 {[%emt 0:00:08]} 5. Nc3 {[%emt 0:00:02]} a6 {[%emt 0:00:09]} 6. Bg5 {[%emt 0:00:03]} Nbd7 {[%emt 0:00:08]} 7. Bc4 {[%emt 0:00:04]} Qb6 {[%emt 0:10:23]} 8. Bb3 {[%emt 0:00:04] OK} e6 {[%emt 0:06:18] Best (Easy)} 9. Qd2 {[%emt 0:00:11]} Nc5 {[%emt 0:10:07] The position is equal.} 10. Bxf6 {[%emt 0:02:17] OK} gxf6 {[%emt 0:01:22]} 11. O-O-O {[%emt 0:00:27]} Qa5 {[%emt 0:05:05] Inaccurate} 12. Rhe1 {[%emt 0:06:50][%cal Od4f5]} Bd7 {[%emt 0:04:05] OK} 13. f4 {[%emt 0:12:53][%cal Bf2f4,Bf4f5][%mdl 32] EV=24.40} O-O-O {[%emt 0:05:31] OK} 14. Kb1 {[%emt 0:01:03]} Kb8 {[%emt 0:04:32]} 15. f5 {[%emt 0:04:37]} h5 {[%emt 0:05:26]} 16. Qf2 {[%emt 0:01:11] OK} Be7 {[%emt 0:02:47] Inaccurate} 17. g3 {[%emt 0:00:46][%cal Bg2g3,Bg3h4][%mdl 32] EV=16.49. Goes to h4 (dbg)). Inaccurate} Rc8 {[%emt 0:09:59]} 18. Qf3 {[%emt 0:00:51] Inaccurate} b5 {[%emt 0:02:50][%cal Bb7b5,Bb5b4][%mdl 32] EV=17.42. Goes to b4 (dbg)). OK} 19. fxe6 {[%emt 0:11:50] OK} fxe6 {[%emt 0:00:12]} 20. Nce2 {[%emt 0:00:08] OK} Rhe8 {[%emt 0:13:06] Inaccurate} 21. c3 {[%emt 0:06:07][%cal Bc2c3,Bc3c4][%mdl 32] EV=13.18. Goes to c4 (dbg)). OK} h4 {[%emt 0:07:33] Inaccurate} 22. gxh4 {[%emt 0:00:55] Best (Easy)} Nxb3 {[%emt 0:03:42] Mistake (0.5)} (22... Qb6 $16 {is a better defense.} 23. h5 f5) 23. axb3 {[%emt 0:03:13]} b4 {[%emt 0:00:23] OK} 24. c4 {[%emt 0:00:26]} f5 {[%emt 0:01:35] Mistake (0.9)} (24... Rc7 $16 {keeps fighting.} 25. h5 Bc8) 25. exf5 $18 {[%emt 0:03:46] Best (Easy)} e5 {[%emt 0:03:17]} 26. Ne6 {[%emt 0:01:15] OK} Bxh4 {[%emt 0:00:10][%cal Rd7e6] OK} 27. Ng3 {[%emt 0:02:46] Inaccurate} Bxe6 {[%emt 0:00:43] Best} 28. fxe6 {[%emt 0:00:25]} Rxe6 {[%emt 0:00:47] [#]} 29. Qg4 $1 {[%emt 0:01:53][%csl LRe6,LRh4] Strong} Bxg3 {[%emt 0:01:02] OK} 30. Qxe6 {[%emt 0:00:54] Best (Easy)} ({Don't play} 30. hxg3 Rce8) 30... Bxe1 {[%emt 0:00:05] OK} 31. Qxd6+ $2 {[%emt 0:01:25] Missed win (1.6)} ({Only move:} 31. Rxe1 $18 {[%cal Oe1d1] And now Rd1! would win.} Qb6 32. Rxe5 Qg1+ 33. Re1 Qxh2 34. Ka2) 31... Qc7 $11 {[%emt 0:00:07] Best (Easy). White has an edge.} 32. Qxc7+ {[%emt 0:00:29] OK} Kxc7 {[%emt 0:00:07]} 33. Rxe1 {[%emt 0:00:26][%cal Oh2h4][%mdl 4096] Endgame. KR-KR. OK} Rh8 {[%emt 0:00:23]} 34. Rxe5 {[%emt 0:04:12] OK} Rxh2 {[%emt 0:00:07] OK} 35. Rd5 {[%emt 0:00:22]} Kc6 {[%emt 0:00:31] OK} 36. Kc1 {[%emt 0:00:06]} Kb6 {[%emt 0:01:11]} 37. Rd2 {[%emt 0:00:24]} Rh3 {[%emt 0:00:19] OK} 38. Kc2 {[%emt 0:00:03] OK} Rg3 {[%emt 0:00:51] OK} 39. Rd6+ {[%emt 0:00:09]} Kb7 {[%emt 0:01:06] OK} 40. Rd3 {[%emt 0:00:45] OK} Rg2+ {[%emt 0:00:07]} 41. Rd2 {[%emt 0:00:06]} Rg3 {[%emt 0:00:40] Black escapes into a draw.   Weighted Error Value: White=0.16 (very precise) /Black=0.14 (very precise) . OK.  Missed win:     	White=1     	---        Mistake:       	---       	Black=2      Inaccurate:     	White=3     	Black=4      OK:         	White=12    	Black=13     Best:        	White=3     	Black=3      Strong:       	White=1     	---} 1/2-1/2

[Event "1st Bangalore GM-Open-A 2024"]
[Site "Bangalore"]
[Date "2024.01.23"]
[Round "7.15"]
[White "Muthaiah AL"]
[Black "Nguyen Van Huy"]
[Result "1/2-1/2"]
[ECO "D11"]
[WhiteElo "2464"]
[BlackElo "2364"]
[Annotator "RC"]
[PlyCount "131"]
[EventDate "2024.01.20"]
[EventType "swiss"]
[EventCountry "IND"]
[SourceTitle "playchess.com"]
[Source "ChessBase"]
[SourceQuality "1"]
[TimeControl "5400+30"]

1. Nf3 {[%emt 0:00:24]} Nf6 {[%emt 0:00:42]} 2. g3 {[%emt 0:00:19]} d5 {[%emt 0:00:58]} 3. Bg2 {[%emt 0:00:24]} c6 {[%emt 0:00:45]} 4. O-O {[%emt 0:00:35]} Bg4 {[%emt 0:01:00]} 5. d4 {[%emt 0:00:31]} Nbd7 {[%emt 0:01:41]} 6. h3 {[%emt 0:01:23]} Bh5 {[%emt 0:02:29]} 7. c4 {[%emt 0:02:30]} e6 {[%emt 0:01:10]} 8. Qb3 {[%emt 0:00:28]} Qb6 {[%emt 0:01:40]} 9. Nc3 {[%emt 0:01:10]} Be7 {[%emt 0:00:47]} 10. Nh4 {[%emt 0:01:54]} O-O {[%emt 0:04:39]} 11. g4 {[%emt 0:01:59]} Bg6 {[%emt 0:00:45]} 12. Nxg6 {[%emt 0:00:16]} hxg6 {[%emt 0:00:10]} 13. Rd1 {[%emt 0:00:12]} Rfd8 {[%emt 0:05:31]} 14. Bf4 {[%emt 0:09:30]} Qb4 {[%emt 0:10:16]} 15. Qxb4 {[%emt 0:18:00]} Bxb4 {[%emt 0:00:37]} 16. cxd5 {[%emt 0:01:20]} exd5 {[%emt 0:03:10]} 17. a3 {[%emt 0:03:08]} Be7 {[%emt 0:01:46]} 18. g5 {[%emt 0:13:31]} Nh5 {[%emt 0:07:37]} 19. Bd2 {[%emt 0:02:12]} Nf8 {[%emt 0:03:46]} 20. h4 {[%emt 0:14:51]} Ne6 {[%emt 0:01:47]} 21. e3 {[%emt 0:01:18]} f6 {[%emt 0:04:02]} 22. b4 {[%emt 0:08:22]} fxg5 {[%emt 0:05:54]} 23. hxg5 {[%emt 0:00:17]} Nxg5 {[%emt 0:00:49]} 24. b5 {[%emt 0:10:14]} Nf6 {[%emt 0:03:59]} 25. a4 {[%emt 0:02:18]} Rac8 {[%emt 0:08:18]} 26. bxc6 {[%emt 0:00:49]} bxc6 {[%emt 0:00:44]} 27. Rab1 {[%emt 0:00:45]} Rb8 {[%emt 0:00:39]} 28. Kf1 {[%emt 0:01:42]} Bd6 {[%emt 0:04:55]} 29. Ke2 {[%emt 0:00:23]} Kf7 {[%emt 0:00:26]} 30. Be1 {[%emt 0:01:51]} Ke7 {[%emt 0:00:55]} 31. Na2 {[%emt 0:00:38]} Ne6 {[%emt 0:06:31]} 32. Nb4 {[%emt 0:00:42]} Bxb4 {[%emt 0:02:02]} 33. Bxb4+ {[%emt 0:00:59]} Kd7 {[%emt 0:00:10]} 34. Ba5 {[%emt 0:00:26]} Rh8 {[%emt 0:01:11]} 35. Rg1 {[%emt 0:00:41]} g5 {[%emt 0:01:00]} 36. Bd2 {[%emt 0:01:46]} g4 {[%emt 0:02:11]} 37. Rh1 {[%emt 0:00:09]} Rhe8 {[%emt 0:01:25]} 38. Kd3 {[%emt 0:00:27]} c5 {[%emt 0:00:43]} 39. dxc5 {[%emt 0:00:35]} Nxc5+ {[%emt 0:00:05]} 40. Ke2 {[%emt 0:00:08]} Nce4 {[%emt 0:01:14]} 41. Rhc1 {[%emt 0:01:09]} Rec8 {[%emt 0:01:23]} 42. Be1 {[%emt 0:00:30]} Rc2+ {[%emt 0:02:31]} 43. Kf1 {[%emt 0:00:33]} Rxf2+ {[%emt 0:03:43]} 44. Bxf2 {[%emt 0:00:02]} Rxb1 {[%emt 0:00:24]} 45. Rxb1 {[%emt 0:00:02]} Nd2+ {[%emt 0:00:03]} 46. Ke1 {[%emt 0:01:02]} Nxb1 {[%emt 0:00:07]} 47. e4 {[%emt 0:00:05]} Nxe4 {[%emt 0:02:05]} 48. Bxa7 {[%emt 0:00:13]} Nbc3 {[%emt 0:00:22]} 49. a5 {[%emt 0:00:34]} Kc6 {[%emt 0:00:18]} 50. a6 {[%emt 0:01:12]} Nb5 {[%emt 0:01:30]} 51. Be3 {[%emt 0:00:53]} Nc5 {[%emt 0:00:31]} 52. Kf2 {[%emt 0:00:33]} Nxa6 {[%emt 0:00:10]} 53. Kg3 {[%emt 0:00:06]} Nc5 {[%emt 0:01:46]} 54. Kxg4 {[%emt 0:00:11]} Ne6 {[%emt 0:00:11]} 55. Bh6 {[%emt 0:01:04]} g6 {[%emt 0:00:27]} 56. Bf1 {[%emt 0:00:32]} Nd6 {[%emt 0:00:27]} 57. Bd3 {[%emt 0:00:18]} Nf7 {[%emt 0:00:57]} 58. Bf4 {[%emt 0:00:50]} Nxf4 {[%emt 0:01:23]} 59. Kxf4 {[%emt 0:00:01]} g5+ {[%emt 0:00:38]} 60. Kf5 {[%emt 0:00:13]} g4 {[%emt 0:01:03]} 61. Bf1 {[%emt 0:00:27]} Nh6+ {[%emt 0:00:19]} 62. Kg5 {[%emt 0:00:11]} d4 {[%emt 0:01:12]} 63. Kxh6 {[%emt 0:00:37]} g3 {[%emt 0:00:31]} 64. Kg5 {[%emt 0:00:24]} d3 {[%emt 0:00:33]} 65. Bxd3 {[%emt 0:00:05]} Kd5 {[%emt 0:00:03]} 66. Bf1 {[%emt 0:00:08]} 1/2-1/2